lending/lending_fUSD_20250516
["ID","MTS","AMOUNT","RATE_DAILY","PERIOD"]
[361286277,1747423841111,-400.0,0.00016438,2]
[361286278,1747423841121,-405.48548122,0.00016438,2]
[361286279,1747423841130,-557.22,0.00016438,2]
[361286280,1747423841139,-213.45732998,0.00016438,2]
[361286281,1747423841149,-696.45,0.00016438,2]
[361286282,1747423841158,-400.0,0.00016438,2]
[361286283,1747423841167,-400.0,0.00016438,2]
[361286284,1747423841177,-441.43,0.00016438,2]
[361286285,1747423841186,-589.06,0.00016438,2]
[361286286,1747423841195,-400.0,0.00016438,2]
[361286287,1747423841205,-400.0,0.00016438,2]
[361286288,1747423841214,-400.0,0.00016438,2]
[361286289,1747423841223,-401.77379023,0.00016438,2]
[361286290,1747423841233,-400.0,0.00016438,2]
[361286291,1747423841242,-400.0,0.00016438,2]
[361286292,1747423841251,-400.0,0.00016438,2]
[361286293,1747423841261,-1509.64,0.00016438,2]
[361286294,1747423841271,-409.23,0.00016438,2]
[361286295,1747423841281,-302.60776156,0.00016438,2]
[361286296,1747423841291,-696.86,0.00016438,2]
[361286297,1747423841300,-600.11,0.00016438,2]
[361286298,1747423841309,-400.0,0.00016438,2]
[361286299,1747423841318,-400.0,0.00016438,2]
[361286300,1747423841327,-1029.19,0.00016438,2]
[361286301,1747423841337,-400.0,0.00016438,2]
[361286302,1747423841346,-1549.24,0.00016438,2]
[361286303,1747423841355,-1127.18,0.00016438,2]
[361286304,1747423841364,-689.63,0.00016438,2]
[361286305,1747423841373,-400.0,0.00016438,2]
[361286306,1747423841382,-400.0,0.00016438,2]
[361286307,1747423841391,-400.0,0.00016438,2]
[361286308,1747423841400,-400.0,0.00016438,2]
[361286309,1747423841409,-580.76,0.00016438,2]
[361286310,1747423841418,-673.7,0.00016438,2]
[361286311,1747423841427,-611.14,0.00016438,2]
[361286312,1747423841437,-436.83,0.00016438,2]
[361286313,1747423841446,-456.29,0.00016438,2]
[361286314,1747423841455,-400.0,0.00016438,2]
[361286315,1747423841464,-650.16,0.00016438,2]
[361286316,1747423841473,-994.84,0.00016438,2]
[361286317,1747423841482,-400.0,0.00016438,2]
[361286318,1747423841491,-811.01,0.00016438,2]
[361286319,1747423841500,-853.2,0.00016438,2]
[361286320,1747423841509,-400.0,0.00016438,2]
[361286321,1747423841518,-524.23121312,0.00016438,2]
[361286322,1747423841527,-400.0,0.00016438,2]
[361286323,1747423841536,-603.9,0.00016438,2]
[361286324,1747423841546,-1434.79,0.00016438,2]
[361286325,1747423841554,-400.0,0.00016438,2]
[361286326,1747423841563,-400.0,0.00016438,2]
[361286327,1747423841572,-552.26,0.00016438,2]
[361286328,1747423841581,-814.92,0.00016438,2]
[361286329,1747423841590,-540.13073377,0.00016438,2]
[361286330,1747423841602,-400.0,0.00016438,2]
[361286331,1747423841611,-597.3,0.00016438,2]
[361286332,1747423841620,-400.0,0.00016438,2]
[361286333,1747423841630,-478.89,0.00016438,2]
[361286334,1747423841639,-1718.1,0.00016438,2]
[361286335,1747423841648,-1202.82,0.00016438,2]
[361286336,1747423841657,-500.0,0.00016438,2]
[361286337,1747423841666,-301.28003084,0.00016438,2]
[361286338,1747423841675,-400.0,0.00016438,2]
[361286339,1747423841684,-1137.41,0.00016438,2]
[361286340,1747423841693,-400.0,0.00016438,2]
[361286341,1747423841702,-594.87,0.00016438,2]
[361286342,1747423841711,-400.0,0.00016438,2]
[361286343,1747423841720,-400.0,0.00016438,2]
[361286344,1747423841728,-400.0,0.00016438,2]
[361286345,1747423841737,-400.0,0.00016438,2]
[361286346,1747423841749,-151.0,0.00016438,2]
[361286347,1747423841758,-960.96,0.00016438,2]
[361286348,1747423841767,-400.0,0.00016438,2]
[361286349,1747423841776,-1500.91,0.00016438,2]
[361286350,1747423841785,-1189.44,0.00016438,2]
[361286351,1747423841794,-809.89,0.00016438,2]
[361286352,1747423841803,-400.0,0.00016438,2]
[361286353,1747423841812,-1017.46,0.00016438,2]
[361286354,1747423841821,-400.0,0.00016438,2]
[361286355,1747423841830,-754.77,0.00016438,2]
[361286356,1747423841840,-400.0,0.00016438,2]
[361286357,1747423841849,-400.0,0.00016438,2]
[361286358,1747423841858,-451.89370204,0.00016438,2]
[361286359,1747423841867,-571.21,0.00016438,2]
[361286360,1747423841875,-400.0,0.00016438,2]
[361286361,1747423841884,-800.15,0.00016438,2]
[361286362,1747423841893,-183.92638364,0.00016438,2]
[361286363,1747423841902,-400.0,0.00016438,2]
[361286364,1747423841911,-1181.38,0.00016438,2]
[361286365,1747423841920,-400.0,0.00016438,2]
[361286366,1747423841929,-400.0,0.00016438,2]
[361286367,1747423841938,-914.08,0.00016438,2]
[361286368,1747423841947,-400.0,0.00016438,2]
[361286369,1747423841956,-400.0,0.00016438,2]
[361286370,1747423841966,-607.26,0.00016438,2]
[361286371,1747423841975,-546.22,0.00016438,2]
[361286372,1747423841984,-400.0,0.00016438,2]
[361286373,1747423841993,-400.0,0.00016438,2]
[361286374,1747423842002,-400.0,0.00016438,2]
[361286375,1747423842011,-400.0,0.00016438,2]
[361286376,1747423842020,-400.0,0.00016438,2]
[361286377,1747423842029,-400.0,0.00016438,2]
[361286378,1747423842039,-400.0,0.00016438,2]
[361286379,1747423842173,-537.26,0.00016438,2]
[361286380,1747423842233,-400.0,0.00016438,2]
[361286381,1747423842243,-151.0,0.00016438,2]
[361286382,1747423842253,-151.0,0.00016438,2]
[361286383,1747423842262,-400.0,0.00016438,2]
[361286384,1747423842271,-583.08,0.00016438,2]
[361286385,1747423842280,-208.6174401,0.00016438,2]
[361286386,1747423842290,-400.0,0.00016438,2]
[361286387,1747423842299,-400.0,0.00016438,2]
[361286388,1747423842308,-400.0,0.00016438,2]
[361286389,1747423842318,-400.0,0.00016438,2]
[361286390,1747423842327,-1236.26,0.00016438,2]
[361286391,1747423842336,-400.0,0.00016438,2]
[361286392,1747423842345,-825.12,0.00016438,2]
[361286393,1747423842355,-400.0,0.00016438,2]
[361286394,1747423842364,-637.59,0.00016438,2]
[361286395,1747423842373,-877.9,0.00016438,2]
[361286396,1747423842383,-400.0,0.00016438,2]
[361286397,1747423842394,-481.22,0.00016438,2]
[361286398,1747423842403,-400.0,0.00016438,2]
[361286399,1747423842413,-400.0,0.00016438,2]
[361286400,1747423842422,-151.0,0.00016438,2]
[361286401,1747423842431,-151.0,0.00016438,2]
[361286402,1747423842440,-716.39,0.00016438,2]
[361286403,1747423842450,-637.13,0.00016438,2]
[361286404,1747423842459,-400.0,0.00016438,2]
[361286405,1747423842469,-400.0,0.00016438,2]
[361286406,1747423842479,-400.0,0.00016438,2]
[361286407,1747423842489,-787.9,0.00016438,2]
[361286408,1747423842497,-1525.08,0.00016438,2]
[361286409,1747423842507,-606.79,0.00016438,2]
[361286410,1747423842517,-400.0,0.00016438,2]
[361286411,1747423842526,-630.46,0.00016438,2]
[361286412,1747423842535,-497.25,0.00016438,2]
[361286413,1747423842546,-400.0,0.00016438,2]
[361286414,1747423842555,-400.0,0.00016438,2]
[361286415,1747423842564,-400.0,0.00016438,2]
[361286416,1747423842573,-767.46,0.00016438,2]
[361286417,1747423842582,-400.0,0.00016438,2]
[361286418,1747423842591,-552.42,0.00016438,2]
[361286419,1747423842603,-455.89164944,0.00016438,2]
[361286420,1747423842613,-400.0,0.00016438,2]
[361286421,1747423842622,-1034.96,0.00016438,2]
[361286422,1747423842632,-400.0,0.00016438,2]
[361286423,1747423842641,-197.05603983,0.00016438,2]
[361286424,1747423842650,-436.94,0.00016438,2]
[361286425,1747423842660,-1535.14,0.00016438,2]
[361286426,1747423842670,-400.0,0.00016438,2]
[361286427,1747423842679,-453.29,0.00016438,2]
[361286428,1747423842688,-400.0,0.00016438,2]
[361286429,1747423842697,-400.0,0.00016438,2]
[361286430,1747423842707,-151.0,0.00016438,2]
[361286431,1747423842716,-400.0,0.00016438,2]
[361286432,1747423842725,-987.92,0.00016438,2]
[361286433,1747423842734,-400.0,0.00016438,2]
[361286434,1747423842745,-400.0,0.00016438,2]
[361286435,1747423842756,-400.0,0.00016438,2]
[361286436,1747423842765,-400.0,0.00016438,2]
[361286437,1747423842775,-400.79809043,0.00016438,2]
[361286438,1747423842784,-402.7,0.00016438,2]
[361286439,1747423842794,-411.94229839,0.00016438,2]
[361286440,1747423842803,-400.0,0.00016438,2]
[361286441,1747423842812,-400.0,0.00016438,2]
[361286442,1747423842821,-400.0,0.00016438,2]
[361286443,1747423842831,-850.69,0.00016438,2]
[361286444,1747423842840,-400.0,0.00016438,2]
[361286445,1747423842850,-417.91,0.00016438,2]
[361286446,1747423842859,-588.45,0.00016438,2]
[361286447,1747423842869,-400.0,0.00016438,2]
[361286448,1747423842877,-400.0,0.00016438,2]
[361286449,1747423842886,-410.5,0.00016438,2]
[361286450,1747423842895,-400.0,0.00016438,2]
[361286451,1747423842905,-2240.35,0.00016438,2]
[361286452,1747423842914,-203.19760473,0.00016438,2]
[361286453,1747423842923,-400.0,0.00016438,2]
[361286454,1747423842933,-1018.52,0.00016438,2]
[361286455,1747423842942,-551.54,0.00016438,2]
[361286456,1747423842952,-400.0,0.00016438,2]
[361286457,1747423842961,-400.0,0.00016438,2]
[361286458,1747423842971,-554.75,0.00016438,2]
[361286459,1747423842980,-620.79,0.00016438,2]
[361286460,1747423842989,-400.0,0.00016438,2]
[361286461,1747423842998,-151.0,0.00016438,2]
[361286462,1747423843008,-151.0,0.00016438,2]
[361286463,1747423843017,-151.0,0.00016438,2]
[361286464,1747423843026,-1193.85,0.00016438,2]
[361286465,1747423843036,-151.0,0.00016438,2]
[361286466,1747423843045,-755.32,0.00016438,2]
[361286467,1747423843055,-151.0,0.00016438,2]
[361286468,1747423843064,-151.0,0.00016438,2]
[361286469,1747423843074,-151.0,0.00016438,2]
[361286470,1747423843083,-230.001565,0.00016438,2]
[361286471,1747423843094,-997.25,0.00016438,2]
[361286472,1747423843107,-400.0,0.00016438,2]
[361286473,1747423843116,-435.30482086,0.00016438,2]
[361286474,1747423843125,-422.37,0.00016438,2]
[361286476,1747423843135,-403.1517639,0.00016438,2]
[361286477,1747423843145,-503.02,0.00016438,2]
[361286478,1747423843154,-452.34,0.00016438,2]
[361286479,1747423843164,-414.9148318,0.00016438,2]
[361286480,1747423843174,-400.0,0.00016438,2]
[361286481,1747423843184,-400.0,0.00016438,2]
[361286482,1747423843193,-400.0,0.00016438,2]
[361286483,1747423843203,-2147.18,0.00016438,2]
[361286484,1747423843213,-413.08,0.00016438,2]
[361286486,1747423843223,-1511.15,0.00016438,2]
[361286488,1747423843233,-160.32059686,0.00016438,2]
[361286489,1747423843243,-400.0,0.00016438,2]
[361286490,1747423843252,-400.0,0.00016438,2]
[361286491,1747423843262,-400.0,0.00016438,2]
[361286492,1747423843272,-517.47,0.00016438,2]
[361286493,1747423843281,-400.0,0.00016438,2]
[361286494,1747423843291,-1043.99,0.00016438,2]
[361286495,1747423843301,-1179.29,0.00016438,2]
[361286496,1747423843311,-538.93,0.00016438,2]
[361286497,1747423843320,-400.0,0.00016438,2]
[361286498,1747423843330,-400.0,0.00016438,2]
[361286499,1747423843340,-400.0,0.00016438,2]
[361286500,1747423843351,-400.0,0.00016438,2]
[361286501,1747423843361,-593.08,0.00016438,2]
[361286502,1747423843371,-1056.8,0.00016438,2]
[361286503,1747423843380,-400.0,0.00016438,2]
[361286504,1747423843390,-151.0,0.00016438,2]
[361286505,1747423843400,-400.0,0.00016438,2]
[361286506,1747423843409,-151.0,0.00016438,2]
[361286507,1747423843418,-862.48,0.00016438,2]
[361286508,1747423843428,-151.0,0.00016438,2]
[361286509,1747423843437,-151.0,0.00016438,2]
[361286510,1747423843446,-400.0,0.00016438,2]
[361286511,1747423843456,-150.70311196,0.00016438,2]
[361286512,1747423843465,-400.0,0.00016438,2]
[361286513,1747423843475,-400.0,0.00016438,2]
[361286514,1747423843484,-400.0,0.00016438,2]
[361286515,1747423843494,-462.66,0.00016438,2]
[361286516,1747423843503,-1991.61,0.00016438,2]
[361286517,1747423843512,-400.0,0.00016438,2]
[361286518,1747423843521,-831.13,0.00016438,2]
[361286519,1747423843531,-1266.71,0.00016438,2]
[361286520,1747423843541,-822.5,0.00016438,2]
[361286521,1747423843550,-151.0,0.00016438,2]
[361286522,1747423843560,-483.16,0.00016438,2]
[361286524,1747423843570,-150.0,0.00016438,10]
[361286525,1747423843579,-779.61,0.00016438,2]
[361286526,1747423843589,-517.73,0.00016438,2]
[361286527,1747423843600,-1155.7,0.00016438,2]
[361286528,1747423843610,-400.0,0.00016438,2]
[361286529,1747423843619,-509.11,0.00016438,2]
[361286530,1747423843629,-406.88,0.00016438,2]
[361286531,1747423843638,-400.0,0.00016438,2]
[361286532,1747423843648,-400.0,0.00016438,2]
[361286533,1747423843657,-400.0,0.00016438,2]
[361286534,1747423843667,-400.0,0.00016438,2]
[361286535,1747423843676,-3189.22,0.00016438,2]
[361286537,1747423843685,-308.830666,0.00016438,2]
[361286539,1747423843695,-308.830666,0.00016438,2]
[361286541,1747423843705,-308.830666,0.00016438,2]
[361286542,1747423843715,-308.830666,0.00016438,2]
[361286543,1747423843724,-308.830666,0.00016438,2]
[361286544,1747423843733,-417.9218095,0.00016438,2]
[361286545,1747423843743,-308.830666,0.00016438,2]
[361286546,1747423843754,-400.0,0.00016438,2]
[361286547,1747423843764,-308.830666,0.00016438,2]
[361286548,1747423843773,-308.830666,0.00016438,2]
[361286549,1747423843783,-680.63,0.00016438,2]
[361286550,1747423843794,-712.39,0.00016438,2]
[361286551,1747423843804,-400.0,0.00016438,2]
[361286552,1747423843815,-922.55,0.00016438,2]
[361286553,1747423843834,-400.0,0.00016438,2]
[361286554,1747423843849,-799.78,0.00016438,2]
[361286555,1747423843859,-400.0,0.00016438,2]
[361286556,1747423843868,-469.09,0.00016438,2]
[361286557,1747423843877,-151.0,0.00016438,2]
[361286558,1747423843887,-151.0,0.00016438,2]
[361286559,1747423843895,-400.0,0.00016438,2]
[361286560,1747423843904,-1417.37,0.00016438,2]
[361286561,1747423843914,-1006.81,0.00016438,2]
[361286562,1747423843923,-457.79,0.00016438,2]
[361286563,1747423843933,-400.0,0.00016438,2]
[361286564,1747423843942,-1730.51,0.00016438,2]
[361286565,1747423843952,-497.22,0.00016438,2]
[361286566,1747423843962,-1302.02,0.00016438,2]
[361286567,1747423843971,-400.0,0.00016438,2]
[361286568,1747423843981,-400.0,0.00016438,2]
[361286569,1747423843992,-400.0,0.00016438,2]
[361286570,1747423844001,-560.21,0.00016438,2]
[361286571,1747423844011,-400.0,0.00016438,2]
[361286572,1747423844020,-821.27,0.00016438,2]
[361286573,1747423844029,-777.41,0.00016438,2]
[361286574,1747423844038,-401.07,0.00016438,2]
[361286575,1747423844047,-400.0,0.00016438,2]
[361286576,1747423844057,-400.0,0.00016438,2]
[361286577,1747423844066,-1361.12,0.00016438,2]
[361286578,1747423844075,-400.0,0.00016438,2]
[361286579,1747423844084,-541.87,0.00016438,2]
[361286580,1747423844094,-400.0,0.00016438,2]
[361286581,1747423844106,-414.06,0.00016438,2]
[361286582,1747423844115,-400.0,0.00016438,2]
[361286583,1747423844124,-400.0,0.00016438,2]
[361286584,1747423844134,-400.0,0.00016438,2]
[361286585,1747423844143,-414.24,0.00016438,2]
[361286586,1747423844152,-447.99,0.00016438,2]
[361286587,1747423844162,-3407.02,0.00016438,2]
[361286588,1747423844171,-400.0,0.00016438,2]
[361286589,1747423844180,-400.0,0.00016438,2]
[361286590,1747423844190,-473.75,0.00016438,2]
[361286591,1747423844199,-507.12,0.00016438,2]
[361286592,1747423844208,-701.12,0.00016438,2]
[361286593,1747423844221,-682.55,0.00016438,2]
[361286594,1747423844231,-1467.08,0.00016438,2]
[361286595,1747423844240,-400.0,0.00016438,2]
[361286596,1747423844250,-507.9,0.00016438,2]
[361286597,1747423844260,-838.14,0.00016438,2]
[361286598,1747423844270,-826.28,0.00016438,2]
[361286599,1747423844280,-795.23,0.00016438,2]
[361286600,1747423844290,-481.46,0.00016438,2]
[361286601,1747423844300,-400.0,0.00016438,2]
[361286602,1747423844311,-638.71,0.00016438,2]
[361286603,1747423844321,-400.0,0.00016438,2]
[361286604,1747423844331,-400.0,0.00016438,2]
[361286605,1747423844340,-152774.64,0.00016438,2]
[361286606,1747423844352,-400.0,0.00016438,2]
[361286607,1747423844362,-1052.26,0.00016438,2]
[361286608,1747423844372,-400.0,0.00016438,2]
[361286609,1747423844383,-968.4,0.00016438,2]
[361286610,1747423844393,-1381.96,0.00016438,2]
[361286611,1747423844403,-644.1,0.00016438,2]
[361286612,1747423844413,-5835.01,0.00016438,2]
[361286613,1747423844423,-659.35,0.00016438,2]
[361286614,1747423844433,-400.0,0.00016438,2]
[361286615,1747423844442,-896.43,0.00016438,2]
[361286616,1747423844452,-705.38,0.00016438,2]
[361286617,1747423844462,-726.49,0.00016438,2]
[361286618,1747423844471,-558.57,0.00016438,2]
[361286619,1747423844480,-400.0,0.00016438,2]
[361286620,1747423844490,-1454.85,0.00016438,2]
[361286621,1747423844499,-400.0,0.00016438,2]
[361286622,1747423844853,-400.0,0.00016438,2]
[361286623,1747423844880,-400.0,0.00016438,2]
[361286624,1747423844890,-428.28,0.00016438,2]
[361286625,1747423844901,-958.98,0.00016438,2]
[361286626,1747423844910,-1812.45,0.00016438,2]
[361286627,1747423844920,-1930.61,0.00016438,2]
[361286628,1747423844930,-662.95,0.00016438,2]
[361286629,1747423844939,-1679.39,0.00016438,2]
[361286630,1747423844949,-934.71,0.00016438,2]
[361286631,1747423844959,-3048.68,0.00016438,2]
[361286632,1747423844969,-663.5,0.00016438,2]
[361286633,1747423844979,-1111.92,0.00016438,2]
[361286634,1747423844988,-400.0,0.00016438,2]
[361286635,1747423844998,-151.0,0.00016438,2]
[361286636,1747423845008,-11141.25,0.00016438,2]
[361286637,1747423845018,-2281.3,0.00016438,2]
[361286638,1747423845027,-500.0,0.00016438,2]
[361286639,1747423845037,-13427.71,0.00016438,2]
[361286640,1747423845048,-500.0,0.00016438,2]
[361286641,1747423845057,-983.72,0.00016438,2]
[361286642,1747423845067,-151.0,0.00016438,2]
[361286643,1747423845077,-151.0,0.00016438,2]
[361286644,1747423845086,-151.0,0.00016438,2]
[361286645,1747423845095,-3180.02,0.00016438,2]
[361286646,1747423845107,-990.85,0.00016438,2]
[361286647,1747423845117,-400.0,0.00016438,2]
[361286648,1747423845127,-400.0,0.00016438,2]
[361286649,1747423845136,-1607.43,0.00016438,2]
[361286650,1747423845146,-400.0,0.00016438,2]
[361286651,1747423845156,-1352.79,0.00016438,2]
[361286652,1747423845166,-400.0,0.00016438,2]
[361286653,1747423845175,-400.0,0.00016438,2]
[361286654,1747423845185,-2146.85,0.00016438,2]
[361286655,1747423845195,-400.0,0.00016438,2]
[361286656,1747423845204,-500.0,0.00016438,2]
[361286657,1747423845214,-4059.56,0.00016438,2]
[361286658,1747423845224,-23012.87,0.00016438,2]
[361286659,1747423845234,-3005.86,0.00016438,2]
[361286660,1747423845244,-2168.35,0.00016438,2]
[361286661,1747423845253,-1655.8,0.00016438,2]
[361286662,1747423845263,-739.08,0.00016438,2]
[361286663,1747423845273,-672.05,0.00016438,2]
[361286664,1747423845283,-595.73,0.00016438,2]
[361286665,1747423845292,-400.0,0.00016438,2]
[361286666,1747423845302,-748.88,0.00016438,2]
[361286667,1747423845311,-1841.28,0.00016438,2]
[361286668,1747423845321,-600.92,0.00016438,2]
[361286669,1747423845330,-400.0,0.00016438,2]
[361286670,1747423845340,-400.0,0.00016438,2]
[361286671,1747423845351,-802.02,0.00016438,2]
[361286672,1747423845361,-1563.43,0.00016438,2]
[361286673,1747423845370,-555.55,0.00016438,2]
[361286674,1747423845380,-2360.54,0.00016438,2]
[361286675,1747423845390,-400.0,0.00016438,2]
[361286676,1747423845400,-606.42,0.00016438,2]
[361286677,1747423845410,-1087.79,0.00016438,2]
[361286678,1747423845419,-1382.2,0.00016438,2]
[361286679,1747423845429,-400.0,0.00016438,2]
[361286680,1747423845438,-400.0,0.00016438,2]
[361286681,1747423845448,-1668.63,0.00016438,2]
[361286682,1747423845457,-455.32513565,0.00016438,2]
[361286683,1747423845467,-1647.67,0.00016438,2]
[361286684,1747423845477,-151.0,0.00016438,2]
[361286685,1747423845486,-151.0,0.00016438,2]
[361286686,1747423845495,-151.0,0.00016438,2]
[361286687,1747423845505,-151.0,0.00016438,2]
[361286688,1747423845514,-438.39,0.00016438,2]
[361286689,1747423845524,-2436.33,0.00016438,2]
[361286690,1747423845533,-299.574358,0.00016438,2]
[361286691,1747423845542,-1133.87,0.00016438,2]
[361286692,1747423845551,-5254.37,0.00016438,2]
[361286693,1747423845560,-400.0,0.00016438,2]
[361286694,1747423845570,-400.0,0.00016438,2]
[361286695,1747423845579,-647.21,0.00016438,2]
[361286696,1747423845588,-400.0,0.00016438,2]
[361286697,1747423845598,-400.0,0.00016438,2]
[361286698,1747423845607,-400.0,0.00016438,2]
[361286699,1747423845616,-2163.88,0.00016438,2]
[361286700,1747423845625,-494.96,0.00016438,2]
[361286701,1747423845635,-570.83,0.00016438,2]
[361286702,1747423845644,-400.0,0.00016438,2]
[361286703,1747423845653,-1003.03,0.00016438,2]
[361286704,1747423845662,-560.55,0.00016438,2]
[361286705,1747423845672,-1002.65,0.00016438,2]
[361286706,1747423845681,-4160.4,0.00016438,2]
[361286707,1747423845690,-1765.13,0.00016438,2]
[361286708,1747423845699,-377.41253101,0.00016438,2]
[361286709,1747423845708,-2477.06,0.00016438,2]
[361286710,1747423845717,-7438.74,0.00016438,2]
[361286711,1747423845727,-2982.26,0.00016438,2]
[361286712,1747423845736,-400.0,0.00016438,2]
[361286713,1747423845748,-568.48,0.00016438,2]
[361286714,1747423845757,-3318.65,0.00016438,2]
[361286715,1747423845767,-987.79,0.00016438,2]
[361286716,1747423845776,-654.34,0.00016438,2]
[361286717,1747423845786,-400.0,0.00016438,2]
[361286718,1747423845796,-400.0,0.00016438,2]
[361286719,1747423845805,-860.25,0.00016438,2]
[361286720,1747423845815,-1285.63,0.00016438,2]
[361286721,1747423845825,-7271.43,0.00016438,2]
[361286722,1747423845835,-2347.17,0.00016438,2]
[361286723,1747423845844,-1667.59,0.00016438,2]
[361286724,1747423845855,-443.71,0.00016438,2]
[361286725,1747423845864,-639.07,0.00016438,2]
[361286726,1747423845874,-1178.42,0.00016438,2]
[361286727,1747423845883,-476.95,0.00016438,2]
[361286728,1747423845892,-400.0,0.00016438,2]
[361286729,1747423845901,-400.0,0.00016438,2]
[361286730,1747423845911,-774.26,0.00016438,2]
[361286731,1747423845920,-3614.36,0.00016438,2]
[361286732,1747423845929,-2818.26,0.00016438,2]
[361286733,1747423845938,-765.4,0.00016438,2]
[361286734,1747423845947,-1207.21,0.00016438,2]
[361286735,1747423845956,-400.0,0.00016438,2]
[361286736,1747423845966,-1170.35,0.00016438,2]
[361286737,1747423845975,-6973.94,0.00016438,2]
[361286738,1747423845984,-400.0,0.00016438,2]
[361286739,1747423845993,-3414.09,0.00016438,2]
[361286741,1747423846003,-400.0,0.00016438,2]
[361286743,1747423846012,-400.0,0.00016438,2]
[361286745,1747423846021,-470.00431052,0.00016438,2]
[361286747,1747423846030,-400.0,0.00016438,2]
[361286749,1747423846039,-2917.05,0.00016438,2]
[361286751,1747423846048,-400.0,0.00016438,2]
[361286753,1747423846058,-400.0,0.00016438,2]
[361286755,1747423846067,-774.48,0.00016438,2]
[361286757,1747423846076,-400.0,0.00016438,2]
[361286759,1747423846085,-1542.8,0.00016438,2]
[361286761,1747423846094,-3231.43,0.00016438,2]
[361286763,1747423846106,-1835.88,0.00016438,2]
[361286765,1747423846115,-400.0,0.00016438,2]
[361286767,1747423846124,-542.827704,0.00016438,2]
[361286769,1747423846134,-542.827704,0.00016438,2]
[361286771,1747423846143,-542.827704,0.00016438,2]
[361286773,1747423846152,-542.827704,0.00016438,2]
[361286775,1747423846162,-542.827704,0.00016438,2]
[361286777,1747423846172,-400.0,0.00016438,2]
[361286779,1747423846182,-151.148592,0.00016438,2]
[361286781,1747423846192,-542.827704,0.00016438,2]
[361286783,1747423846202,-542.827704,0.00016438,2]
[361286785,1747423846211,-542.827704,0.00016438,2]
[361286787,1747423846221,-542.827704,0.00016438,2]
[361286789,1747423846230,-542.827704,0.00016438,2]
[361286791,1747423846240,-3066.83,0.00016438,2]
[361286793,1747423846250,-665.2,0.00016438,2]
[361286795,1747423846259,-1012.53,0.00016438,2]
[361286796,1747423846269,-400.0,0.00016438,2]
[361286797,1747423846280,-161.524002,0.00016438,2]
[361286798,1747423846289,-1145.46,0.00016438,2]
[361286799,1747423846299,-450.2,0.00016438,2]
[361286800,1747423846309,-400.0,0.00016438,2]
[361286801,1747423846318,-2802.93,0.00016438,2]
[361286802,1747423846328,-400.0,0.00016438,2]
[361286803,1747423846337,-1619.56793942,0.00016438,2]
[361286808,1747423846862,-175.64206058,0.00016438,2]
[361286809,1747423846871,-329.65793942,0.00016438,2]
[361286810,1747423846883,-143.33778042,0.00016438,2]
[361286811,1747423846892,-928.57,0.00016438,2]
[361286812,1747423846901,-400.0,0.00016438,2]
[361286813,1747423846911,-1046.61,0.00016438,2]
[361286814,1747423846920,-464.67,0.00016438,2]
[361286815,1747423846929,-400.0,0.00016438,2]